bitfinex/quotes_SOLUSD_20251119
["timestamp","ask_amount","ask_price","bid_price","bid_amount"]
[1763577212313,7.277133,131.12,131.1,1.84]
[1763577213721,7.947133,131.12,131.1,1.84]
[1763577214022,7.277133,131.11,131.09,0.1]
[1763577214199,7.277133,131.11,131.1,1.84]
[1763577214594,7.947133,131.11,131.09,0.1]
[1763577214794,7.947133,131.1,131.09,0.1]
[1763577215007,5.05598687,131.11,131.09,1.94]
[1763577215199,7.277133,131.1,131.09,1.94]
[1763577216822,12.33311987,131.11,131.09,1.94]
[1763577217118,7.947133,131.11,131.09,1.94]
[1763577217421,7.277133,131.11,131.09,1.94]
[1763577217594,7.277133,131.1,131.09,1.94]
[1763577217795,7.947133,131.11,131.09,1.94]
[1763577218204,7.277133,131.1,131.09,1.94]
[1763577218699,7.277133,131.11,131.09,1.94]
[1763577219113,12.33164867,131.13,131.09,2.65]
[1763577219421,5.43040889,131.12,131.1,0.71]
[1763577219720,26.068093,131.14,131.1,0.71]
[1763577220116,7.277133,131.13,131.1,0.71]
[1763577220325,7.277133,131.15,131.1,7.987133]
[1763577220627,5.72588373,131.19,131.13,7.277133]
[1763577220930,7.277133,131.17,131.14,1.84]
[1763577221111,6.10213552,131.18,131.15,1.84]
[1763577221112,7.277133,131.16,131.15,1.84]
[1763577221297,12.70864762,131.16,131.15,1.84]
[1763577221726,5.43151462,131.16,131.15,1.84]
[1763577221929,7.277133,131.16,131.15,1.84]
[1763577222092,12.70864762,131.16,131.15,1.84]
[1763577222818,7.277133,131.17,131.15,1.84]
[1763577223021,7.947133,131.17,131.15,1.84]
[1763577223197,7.277133,131.17,131.15,1.84]
[1763577223396,5.05588373,131.18,131.15,2.55]
[1763577223605,26.068093,131.19,131.15,2.55]
[1763577223812,13.37914434,131.18,131.15,1.84]
[1763577224016,13.00334458,131.18,131.15,1.84]
[1763577224304,12.70831498,131.17,131.16,1.84]
[1763577224740,13.37831498,131.17,131.09,18.22096]
[1763577224896,24.22365535,131.16,131.09,0.81]
[1763577225096,24.22365535,131.16,131.1,2.55]
[1763577225097,7.277133,131.14,131.1,2.55]
[1763577225303,5.05621158,131.15,131.11,10.49882769]
[1763577225638,5.4328208,131.14,131.11,10.49882769]
[1763577225803,12.7099538,131.14,131.12,0.71]
[1763577226138,12.33334458,131.15,131.12,0.71]
[1763577226507,12.33334458,131.15,131.13,1.84]
[1763577226708,12.33334458,131.15,131.13,63.94]
[1763577227027,5.43499306,131.14,131.13,63.94]
[1763577227335,7.62376115,131.17,131.13,63.94]
[1763577227336,7.277133,131.17,131.13,1.84]
[1763577227506,5.4357402,131.16,131.13,1.84]
[1763577227706,12.7128732,131.16,131.13,2.55]
[1763577227905,7.277133,131.16,131.13,2.55]
[1763577229149,0.67,131.15,131.14,1.84]
[1763577229307,7.947133,131.15,131.14,1.84]
[1763577229506,13.38197824,131.15,131.14,1.84]
[1763577229737,13.38197824,131.15,131.12,62.1]
[1763577229918,7.277133,131.14,131.13,1.84]
[1763577230243,13.39175979,131.14,131.12,62.1]
[1763577230442,13.39117653,131.13,131.09,9.88882769]
[1763577230650,7.277133,131.11,131.1,1.84]
[1763577231144,7.277133,131.12,131.1,1.84]
[1763577231314,5.73946171,131.15,131.11,0.69]
[1763577231513,5.43558681,131.14,131.11,0.69]
[1763577232346,12.71271981,131.14,131.11,0.69]
[1763577232545,7.277133,131.14,131.11,0.69]
[1763577233931,13.01659471,131.15,131.11,72.57882769]
[1763577234236,13.01659471,131.15,131.12,9.78882769]
[1763577234237,5.05946171,131.15,131.12,9.78882769]
[1763577234444,5.05946171,131.15,131.13,1.84]
[1763577234642,23.86042171,131.18,131.13,2.53]
[1763577234818,12.71416829,131.17,131.14,0.69]
[1763577235018,7.277133,131.2,131.15,17.06596069]
[1763577235247,5.43761167,131.19,131.16,2.53]
[1763577235440,5.43761167,131.19,131.16,9.807133]
[1763577235642,7.277133,131.22,131.17,17.75596069]
[1763577235822,5.43799656,131.21,131.18,0.69]
[1763577236017,5.43799656,131.21,131.19,1.84]
[1763577236246,12.34033458,131.22,131.19,2.53]
[1763577236551,30.46129458,131.23,131.19,1.84]
[1763577236750,12.34033458,131.22,131.19,1.84]
[1763577236942,16.45418943,131.22,131.19,1.84]
[1763577237143,11.39098785,131.22,131.19,1.84]
[1763577237536,16.45418943,131.22,131.19,1.84]
[1763577238024,16.45418943,131.22,131.2,1.84]
[1763577238331,5.06320158,131.22,131.2,1.84]
[1763577238531,5.06320158,131.22,131.2,2.53]
[1763577238731,16.45418943,131.24,131.2,2.53]
[1763577238943,17.13418943,131.24,131.2,2.53]
[1763577239127,11.39098785,131.23,131.2,2.53]
[1763577239759,11.39098785,131.23,131.2,1.84]
[1763577239924,11.39098785,131.23,131.2,2.53]
[1763577240130,11.39098785,131.22,131.19,9.78882769]
[1763577240435,11.39098785,131.21,131.2,1.84]
[1763577240625,12.07098785,131.22,131.2,1.84]
[1763577240822,18.32096,131.25,131.21,0.69]
[1763577241052,29.51194785,131.24,131.21,0.69]
[1763577241828,11.59098785,131.25,131.21,0.69]
[1763577242030,0.2,131.25,131.21,12.08098785]
[1763577242229,11.59098785,131.25,131.21,0.69]
[1763577242459,11.59098785,131.25,131.22,0.69]
[1763577242665,11.59098785,131.25,131.23,1.84]
[1763577243300,12.07098785,131.24,131.23,1.84]
[1763577243460,0.88,131.25,131.23,1.84]
[1763577243664,11.39098785,131.24,131.23,1.84]
[1763577243888,11.59098785,131.25,131.23,1.84]
[1763577244403,0.2,131.25,131.23,1.84]
[1763577244567,0.2,131.25,131.24,10.47882769]
[1763577245169,0.2,131.31,131.3,11.39098785]
[1763577245497,0.2,131.31,131.3,12.31882769]
[1763577245688,0.2,131.31,131.3,23.70981554]
[1763577246191,0.2,131.32,131.31,9.78882769]
[1763577246396,0.2,131.32,131.31,21.86981554]
[1763577246901,0.2,131.33,131.32,21.17981554]
[1763577247200,0.2,131.33,131.32,21.86981554]
[1763577248296,0.2,131.33,131.32,39.99077554]
[1763577248513,0.2,131.33,131.32,9.78882769]
[1763577248669,0.2,131.33,131.32,1.84]
[1763577249476,19.88558952,131.33,131.26,0.69]
[1763577249796,0.2,131.33,131.29,11.39098785]
[1763577249997,0.2,131.33,131.3,1.84]
[1763577250372,0.2,131.33,131.3,13.23098785]
[1763577250572,0.2,131.33,131.3,13.92098785]
[1763577250969,0.2,131.33,131.3,2.53]
[1763577251167,0.88,131.33,131.3,1.84]
[1763577251601,12.27098785,131.33,131.29,9.78882769]
[1763577251798,12.07098785,131.32,131.26,18.81096]
[1763577251967,11.39098785,131.31,131.27,11.62882769]
[1763577252169,11.39098785,131.29,131.28,1.84]
[1763577252367,0.68,131.32,131.28,1.84]
[1763577252702,12.07098785,131.32,131.28,1.84]
[1763577253387,11.39098785,131.32,131.28,13.92098785]
[1763577253597,18.32096,131.33,131.29,0.69]
[1763577253766,11.39098785,131.32,131.28,13.92098785]
[1763577253966,11.39098785,131.32,131.28,1.84]
[1763577253967,12.07098785,131.32,131.28,1.84]
[1763577254608,0.2,131.33,131.3,18.12096]
[1763577254770,0.2,131.33,131.31,1.84]
[1763577254975,0.2,131.33,131.32,21.17981554]
[1763577255170,0.2,131.33,131.32,21.86981554]
[1763577255570,0.2,131.33,131.32,39.99077554]
[1763577257474,0.2,131.33,131.32,21.86981554]
[1763577258391,0.2,131.33,131.32,23.70981554]
[1763577258795,0.2,131.35,131.32,23.70981554]
[1763577258983,0.2,131.37,131.35,9.78882769]
[1763577259304,0.2,131.39,131.38,27.90978769]
[1763577259493,0.2,131.39,131.38,39.88077554]
[1763577259703,11.59098785,131.48,131.43,9.78882769]
[1763577259873,0.69,131.46,131.44,1.84]
[1763577260305,0.89,131.48,131.44,23.01981554]
[1763577260599,0.69,131.47,131.44,9.78882769]
[1763577260775,0.69,131.47,131.44,23.01981554]
[1763577260975,0.2,131.48,131.44,23.01981554]
[1763577261226,0.89,131.48,131.44,11.62882769]
[1763577261378,0.2,131.47,131.44,23.01981554]
[1763577261889,0.2,131.47,131.44,85.11981554]
[1763577262414,0.2,131.47,131.44,41.32077554]
[1763577262602,0.89,131.47,131.44,24.14996743]
[1763577262901,0.89,131.45,131.44,1.84]
[1763577264009,0.89,131.45,131.42,9.78882769]
[1763577264186,0.69,131.44,131.43,1.84]
[1763577264380,12.08098785,131.44,131.43,1.84]
[1763577264581,37.80998193,131.44,131.35,0.18]
[1763577264882,11.39098785,131.41,131.37,9.78882769]
[1763577265117,11.39098785,131.4,131.37,9.78882769]
[1763577265288,12.10098785,131.42,131.36,13.23098785]
[1763577265490,11.39098785,131.41,131.36,13.23098785]
[1763577265694,0.71,131.43,131.37,9.78882769]
[1763577265695,11.39098785,131.4,131.37,9.78882769]
[1763577265902,12.10098785,131.42,131.37,21.17981554]
[1763577266423,0.71,131.41,131.35,0.7613247]
[1763577266580,11.39098785,131.4,131.37,9.78882769]
[1763577266896,12.10098785,131.41,131.37,9.78882769]
[1763577267206,0.71,131.43,131.39,9.78882769]
[1763577267506,12.10098785,131.43,131.4,1.84]
[1763577267907,0.71,131.42,131.4,1.84]
[1763577268089,0.71,131.43,131.4,1.84]
[1763577268401,11.39098785,131.44,131.4,1.84]
[1763577268802,12.10098785,131.43,131.4,1.84]
[1763577269010,12.10098785,131.43,131.41,1.84]
[1763577269982,11.39098785,131.43,131.41,1.84]
[1763577270183,12.10098785,131.42,131.38,9.78882769]
[1763577270481,12.10098785,131.42,131.39,1.84]
[1763577270482,11.39098785,131.41,131.39,1.84]
[1763577270678,12.10098785,131.41,131.39,1.84]
[1763577271082,0.71,131.44,131.39,1.84]
[1763577271386,18.83096,131.44,131.39,13.23098785]
[1763577271602,0.71,131.43,131.39,13.23098785]
[1763577272079,0.71,131.43,131.39,1.84]
[1763577272275,0.2,131.45,131.4,9.78882769]
[1763577272589,0.2,131.45,131.4,21.84981554]
[1763577272590,0.91,131.45,131.4,21.84981554]
[1763577272784,0.2,131.45,131.42,9.78882769]
[1763577272982,0.2,131.45,131.43,1.84]
[1763577273614,0.71,131.44,131.37,18.79096]
[1763577273794,12.10098785,131.44,131.4,9.78882769]
[1763577274123,0.2,131.45,131.41,13.23098785]
[1763577274432,0.2,131.45,131.42,21.17981554]
[1763577274593,0.2,131.45,131.43,11.39098785]
[1763577274787,0.2,131.45,131.44,13.23098785]
[1763577275501,0.2,131.45,131.44,23.68981554]
[1763577275700,0.2,131.45,131.44,12.29882769]
[1763577275891,0.2,131.45,131.44,23.68981554]
[1763577276104,0.2,131.45,131.44,23.01981554]
[1763577276283,0.2,131.45,131.44,9.78882769]
[1763577276615,0.2,131.45,131.44,23.01981554]
[1763577278198,0.2,131.45,131.44,23.68981554]
[1763577278808,0.2,131.45,131.44,23.01981554]
[1763577279003,0.2,131.45,131.44,23.68981554]
[1763577279205,0.2,131.45,131.44,23.01981554]
[1763577279507,0.2,131.45,131.44,23.68981554]
[1763577280092,0.2,131.45,131.44,41.81077554]
[1763577280294,0.2,131.45,131.44,42.57157894]
[1763577280495,0.2,131.45,131.44,24.45061894]
[1763577281096,0.2,131.45,131.44,41.81077554]
[1763577281499,0.2,131.45,131.44,30.41978769]
[1763577281816,0.2,131.45,131.44,41.81077554]
[1763577283024,0.2,131.45,131.44,39.97077554]
[1763577283389,0.2,131.45,131.44,41.81077554]
[1763577285294,0.2,131.45,131.44,39.97077554]
[1763577285520,0.2,131.45,131.44,41.81077554]
[1763577286939,0.2,131.45,131.44,39.30077554]
[1763577287126,0.91,131.45,131.44,1.84]
[1763577287430,0.2,131.45,131.44,11.62882769]
[1763577287595,0.2,131.45,131.44,23.01981554]
[1763577288006,0.2,131.45,131.44,23.68981554]
[1763577289911,0.2,131.45,131.44,21.84981554]
[1763577290222,0.2,131.45,131.44,41.14077554]
[1763577290525,0.2,131.45,131.44,41.82077554]
[1763577292023,0.2,131.45,131.44,39.98077554]
[1763577292327,0.2,131.45,131.44,41.82077554]
[1763577293617,0.2,131.45,131.44,42.58157894]
[1763577294304,0.2,131.45,131.44,30.42978769]
[1763577294499,0.2,131.45,131.44,39.98077554]
[1763577294932,0.2,131.45,131.44,41.14077554]
[1763577295413,0.2,131.45,131.44,41.82077554]
[1763577295815,0.2,131.45,131.44,39.30077554]
[1763577296016,0.2,131.45,131.44,23.01981554]
[1763577296219,0.2,131.45,131.44,41.14077554]
[1763577296925,0.2,131.45,131.44,36.98897228]
[1763577297131,0.2,131.45,131.44,37.66897228]
[1763577298826,0.2,131.45,131.44,36.98897228]
[1763577299125,0.9,131.45,131.44,27.90978769]
[1763577299317,0.2,131.45,131.44,36.98897228]
[1763577300230,0.9,131.45,131.41,7.23918459]
[1763577300439,0.9,131.45,131.42,11.62882769]
[1763577300621,0.7,131.44,131.42,11.62882769]
[1763577300937,0.2,131.45,131.43,7.23918459]
[1763577301113,0.2,131.45,131.44,1.84]
[1763577301308,0.2,131.45,131.34,22.74083941]
[1763577301309,15.74673827,131.45,131.34,22.74083941]
[1763577301642,0.9,131.45,131.44,1.84]
[1763577301808,7.43918459,131.45,131.44,1.84]
[1763577302012,15.04663989,131.45,131.38,9.78882769]
[1763577302211,7.23918459,131.41,131.35,0.68]
[1763577302410,7.8074553,131.45,131.3,0.76161462]
[1763577302411,7.23918459,131.39,131.34,23.11409188]
[1763577302643,32.96817867,131.44,131.32,7.91918459]
[1763577302644,7.23918459,131.37,131.32,7.91918459]
[1763577302847,7.23918459,131.38,131.33,7.91918459]
[1763577303150,5.04734081,131.43,131.42,1.84]
[1763577303835,5.04734081,131.43,131.36,28.58978769]
[1763577304047,5.04734081,131.43,131.37,9.78882769]
[1763577304214,7.23918459,131.42,131.37,18.86801228]
[1763577304409,18.12096,131.44,131.37,19.54801228]
[1763577304648,7.23918459,131.42,131.37,19.54801228]
[1763577305220,7.23918459,131.38,131.33,30.08923682]
[1763577305427,7.23918459,131.4,131.35,7.23918459]
[1763577305813,7.23918459,131.42,131.37,7.23918459]
[1763577306014,18.12096,131.44,131.37,7.23918459]
[1763577306237,18.12096,131.44,131.39,9.78882769]
[1763577306508,7.23918459,131.43,131.4,1.84]
[1763577306763,7.23918459,131.43,131.4,63.94]
[1763577307039,7.23918459,131.43,131.4,1.84]
[1763577307223,7.23918459,131.42,131.4,1.84]
[1763577307535,7.23918459,131.41,131.37,9.78882769]
[1763577307742,7.23918459,131.39,131.38,1.84]
[1763577308951,7.23918459,131.39,131.32,10.46882769]
[1763577309164,7.61054533,131.4,131.33,1.84]
[1763577309313,7.23918459,131.36,131.33,1.84]
[1763577309512,5.04581228,131.41,131.33,1.84]
[1763577309749,7.23918459,131.35,131.33,1.84]
[1763577310243,7.23918459,131.35,131.3,7.23918459]
[1763577310429,7.23918459,131.33,131.31,11.62882769]
[1763577310818,7.23918459,131.32,131.29,0.2]
[1763577311132,7.23918459,131.31,131.3,1.84]
[1763577312236,7.23918459,131.32,131.3,1.84]
[1763577312450,7.23918459,131.33,131.3,1.84]
[1763577312659,7.23918459,131.31,131.29,0.2]
[1763577312939,32.97286598,131.36,131.29,0.2]
[1763577312940,7.23918459,131.3,131.29,0.2]
[1763577313150,7.23918459,131.3,131.29,2.04]
[1763577314415,7.23918459,131.3,131.29,0.2]
[1763577314842,7.23918459,131.3,131.29,2.04]
[1763577315219,7.23918459,131.3,131.29,0.2]
[1763577315417,7.23918459,131.3,131.29,2.04]
[1763577316151,7.23918459,131.31,131.29,2.04]
[1763577316457,7.23918459,131.3,131.29,2.04]
[1763577317139,7.23918459,131.33,131.29,2.72]
[1763577317556,7.6115086,131.38,131.29,2.72]
[1763577317557,7.23918459,131.34,131.3,0.68]
[1763577317919,7.23918459,131.34,131.31,1.84]
[1763577318648,7.23918459,131.33,131.31,1.84]
[1763577319238,7.23918459,131.32,131.31,1.84]
[1763577319670,7.23918459,131.32,131.29,0.2]
[1763577319963,7.23918459,131.32,131.3,1.84]
[1763577320163,7.23918459,131.33,131.3,1.84]
[1763577320339,7.23918459,131.34,131.3,9.07918459]
[1763577320534,7.23918459,131.34,131.3,1.84]
[1763577320761,7.23918459,131.33,131.3,2.52]
[1763577321571,7.23918459,131.34,131.3,2.52]
[1763577322041,7.23918459,131.33,131.3,1.84]
[1763577322441,7.23918459,131.33,131.31,1.84]
[1763577322851,7.23918459,131.33,131.32,1.84]
[1763577323858,7.23918459,131.34,131.32,1.84]
[1763577324241,7.23918459,131.34,131.3,0.68]
[1763577324457,7.23918459,131.34,131.31,1.84]
[1763577324958,7.23918459,131.34,131.31,2.52]
[1763577325254,7.23918459,131.34,131.31,1.84]
[1763577325554,7.23918459,131.32,131.29,62.3]
[1763577325756,7.23918459,131.32,131.3,1.84]
[1763577326162,7.23918459,131.31,131.3,1.84]
[1763577326358,18.12096,131.37,131.31,0.7]
[1763577326586,7.23918459,131.35,131.31,62.8]
[1763577326744,7.23918459,131.37,131.32,7.93918459]
[1763577326949,0.2,131.45,131.36,7.23918459]
[1763577327250,7.23918459,131.43,131.38,7.23918459]
[1763577327474,7.23918459,131.43,131.38,7.93918459]
[1763577327669,7.23918459,131.43,131.39,0.7]
[1763577327873,7.23918459,131.43,131.4,1.84]
[1763577328176,7.23918459,131.42,131.4,1.84]
[1763577328548,25.92879851,131.45,131.4,1.84]
[1763577328749,7.23918459,131.42,131.4,1.84]
[1763577329146,0.2,131.45,131.4,1.84]
[1763577329375,7.23918459,131.42,131.4,1.84]
[1763577329862,7.23918459,131.41,131.4,1.84]
[1763577331952,14.84934623,131.41,131.39,1.84]
[1763577332152,18.12096,131.37,131.29,7.43918459]
[1763577332355,7.23918459,131.33,131.3,2.54]
[1763577332575,7.23918459,131.33,131.31,9.78882769]
[1763577332778,7.23918459,131.32,131.3,0.7]
[1763577333074,7.23918459,131.32,131.31,1.84]
[1763577334850,9.78882769,131.41,131.31,2.54]
[1763577335057,18.12096,131.38,131.31,2.54]
[1763577335356,7.23918459,131.35,131.31,2.54]
[1763577335779,7.23918459,131.36,131.32,0.7]
[1763577337060,7.23918459,131.37,131.32,0.7]
[1763577337384,7.23918459,131.37,131.33,9.78882769]
[1763577337551,7.23918459,131.37,131.34,1.84]
[1763577337755,7.23918459,131.36,131.34,1.84]
[1763577338183,7.23918459,131.37,131.35,0.7]
[1763577338380,7.23918459,131.39,131.35,62.8]
[1763577338586,7.23918459,131.38,131.35,62.8]
[1763577338764,0.2,131.45,131.36,0.7]
[1763577339091,7.23918459,131.4,131.37,1.84]
[1763577339457,25.36014459,131.41,131.37,2.54]
[1763577339654,18.12096,131.41,131.37,2.54]
[1763577339862,25.36014459,131.41,131.37,1.84]
[1763577340161,7.23918459,131.41,131.38,0.7]
[1763577340781,7.23918459,131.43,131.38,7.93918459]
[1763577341093,25.36014459,131.43,131.38,7.93918459]
[1763577341275,7.23918459,131.43,131.39,0.7]
[1763577341590,0.2,131.45,131.41,17.02801228]
[1763577341883,0.2,131.45,131.42,0.7]
[1763577342069,0.2,131.45,131.43,1.84]
[1763577342992,7.43918459,131.45,131.43,1.84]
[1763577343286,7.23918459,131.44,131.39,0.7]
[1763577343491,7.23918459,131.44,131.4,1.84]
[1763577343876,7.23918459,131.44,131.4,2.54]
[1763577344087,0.2,131.45,131.39,9.78882769]
[1763577344287,7.23918459,131.4,131.38,1.84]
[1763577344508,5.01434484,131.41,131.38,1.84]
[1763577344695,7.23918459,131.44,131.38,1.84]
[1763577344696,5.01434484,131.42,131.38,1.84]
[1763577345003,7.23918459,131.42,131.39,0.7]
[1763577345290,7.23918459,131.41,131.38,1.84]
[1763577345465,7.23918459,131.41,131.36,0.7]
[1763577345663,7.23918459,131.38,131.34,0.7]
[1763577345885,7.23918459,131.36,131.35,1.84]
[1763577346198,7.23918459,131.37,131.35,1.84]
[1763577347012,7.23918459,131.36,131.35,1.84]
[1763577347569,3.22751816,131.36,131.35,1.84]
[1763577348088,7.23918459,131.37,131.35,1.84]
[1763577348290,7.23918459,131.38,131.35,1.84]
[1763577348487,18.12096,131.43,131.37,7.23918459]
[1763577348711,7.23918459,131.43,131.38,9.07918459]
[1763577348894,25.36014459,131.43,131.38,9.07918459]
[1763577349094,18.12096,131.42,131.39,0.7]
[1763577349283,7.23918459,131.44,131.39,0.7]
[1763577349479,0.2,131.45,131.41,7.23918459]
[1763577349798,0.2,131.45,131.42,1.84]
[1763577350518,7.23918459,131.44,131.43,1.84]
[1763577351693,14.84721867,131.44,131.39,62.1]
[1763577351998,7.23918459,131.43,131.4,1.84]
[1763577352679,18.12096,131.43,131.41,0.67]
[1763577352897,7.43918459,131.45,131.41,0.67]
[1763577353101,7.23918459,131.44,131.41,0.67]
[1763577353300,7.23918459,131.44,131.4,2.51]
[1763577353598,7.43918459,131.45,131.4,9.74918459]
[1763577354186,7.23918459,131.44,131.37,0.67]
[1763577354396,7.23918459,131.43,131.38,9.07918459]
[1763577354788,7.23918459,131.43,131.38,2.51]
[1763577354984,7.23918459,131.43,131.39,0.67]
[1763577355196,0.2,131.45,131.41,7.23918459]
[1763577355408,0.2,131.45,131.42,1.84]
[1763577355633,0.2,131.45,131.42,9.74918459]
[1763577356090,0.2,131.45,131.42,2.51]
[1763577357413,0.2,131.45,131.43,0.67]
[1763577358015,11.55092008,131.45,131.44,1.84]
[1763577358309,0.2,131.45,131.44,1.84]
[1763577358622,11.55092008,131.45,131.44,1.84]
[1763577359022,18.32096,131.45,131.44,1.84]
[1763577359397,18.32096,131.45,131.44,2.51]
[1763577359597,0.2,131.45,131.44,2.51]
[1763577360404,0.2,131.47,131.44,13.86092008]
[1763577360617,0.2,131.47,131.46,11.35092008]
[1763577360999,0.2,131.47,131.46,21.80974777]
[1763577361844,0.2,131.47,131.46,10.45882769]
[1763577361997,0.2,131.47,131.46,0.67]
[1763577362198,0.2,131.47,131.46,2.51]
[1763577362414,0.2,131.47,131.46,13.86092008]
[1763577362619,0.2,131.47,131.46,2.51]
[1763577362803,0.2,131.47,131.46,13.86092008]
[1763577363738,0.2,131.47,131.46,1.84]
[1763577363940,0.2,131.47,131.42,0.67]
[1763577363941,11.55092008,131.47,131.42,0.67]
[1763577364101,11.35092008,131.45,131.43,1.84]
[1763577364500,11.55092008,131.44,131.38,12.02092008]
[1763577364716,11.35092008,131.43,131.39,1.84]
[1763577364927,11.55092008,131.44,131.39,1.84]
[1763577365103,11.35092008,131.44,131.39,13.19092008]
[1763577365309,11.35092008,131.45,131.4,12.02092008]
[1763577365803,11.55092008,131.45,131.4,0.67]
[1763577366000,11.55092008,131.44,131.39,1.84]
[1763577366204,11.35092008,131.4,131.37,27.90978769]
[1763577366418,18.12096,131.41,131.38,1.84]
[1763577366627,0.2,131.45,131.38,1.84]
[1763577366929,29.47188008,131.45,131.4,11.35092008]
[1763577367127,18.12096,131.45,131.41,1.84]
[1763577367305,29.47188008,131.45,131.41,1.84]
[1763577367713,11.55092008,131.44,131.41,1.84]
[1763577367938,11.35092008,131.43,131.41,1.84]
[1763577368126,11.35092008,131.43,131.42,1.84]
[1763577368707,18.12096,131.45,131.42,1.84]
[1763577368922,29.47188008,131.44,131.42,1.84]
[1763577369331,0.2,131.45,131.42,1.84]
[1763577369509,11.35092008,131.45,131.42,1.84]
[1763577370126,11.35092008,131.43,131.38,11.35092008]
[1763577370326,11.35092008,131.43,131.39,1.84]
[1763577370516,11.35092008,131.44,131.39,2.51]
[1763577370720,11.35092008,131.43,131.39,2.51]
[1763577370915,11.35092008,131.43,131.39,0.67]
[1763577371113,11.35092008,131.42,131.4,1.84]
[1763577371315,18.12096,131.43,131.4,1.84]
[1763577371522,18.12096,131.43,131.4,2.51]
[1763577371717,29.47188008,131.43,131.4,1.84]
[1763577372121,11.35092008,131.42,131.4,1.84]
[1763577372319,11.55092008,131.42,131.35,27.90978769]
[1763577372520,11.35092008,131.41,131.36,13.86092008]
[1763577372821,11.35092008,131.41,131.36,12.02092008]
[1763577373133,11.35092008,131.41,131.37,2.51]
[1763577373434,16.38811012,131.42,131.37,13.86092008]
[1763577373831,11.35092008,131.41,131.37,2.51]
[1763577374841,16.58811012,131.42,131.37,2.51]
[1763577375214,18.12096,131.43,131.38,12.02092008]
[1763577375431,34.49610811,131.43,131.38,12.02092008]
[1763577375633,34.49610811,131.43,131.39,0.67]
[1763577375634,29.47188008,131.43,131.39,0.67]
[1763577375820,29.47188008,131.43,131.4,1.84]
[1763577376217,18.12096,131.43,131.41,0.67]
[1763577376522,0.2,131.47,131.43,9.78882769]
[1763577376725,0.2,131.47,131.46,11.35092008]
[1763577377033,0.2,131.47,131.46,12.02092008]
[1763577377227,0.2,131.47,131.44,11.35092008]
[1763577377442,0.2,131.47,131.45,1.84]
[1763577377643,11.35092008,131.46,131.41,0.67]
[1763577377813,11.35092008,131.46,131.42,1.84]
[1763577378016,11.35092008,131.46,131.42,2.51]
[1763577378525,18.32096,131.47,131.43,0.67]
[1763577378726,29.67188008,131.47,131.43,0.67]
[1763577379039,29.67188008,131.47,131.42,1.84]
[1763577379237,37.27828463,131.47,131.42,2.51]
[1763577379616,37.27828463,131.47,131.43,1.84]
[1763577379814,11.35092008,131.44,131.39,0.72]
[1763577380036,11.35092008,131.44,131.4,1.84]
[1763577380449,10.85092008,131.44,131.4,2.56]
[1763577380749,11.35092008,131.44,131.4,2.56]
[1763577383863,0.2,131.47,131.46,12.07092008]
[1763577386254,0.2,131.47,131.46,23.69974777]
[1763577387367,0.2,131.47,131.46,41.82070777]
[1763577387541,0.2,131.47,131.46,39.98070777]
[1763577387746,0.2,131.47,131.46,32.03188008]
[1763577388633,0.2,131.47,131.46,64.64]
[1763577389140,0.2,131.47,131.46,63.94]
[1763577389529,0.2,131.47,131.45,11.35092008]
[1763577389530,0.2,131.47,131.42,62.8]
[1763577389867,0.2,131.47,131.43,13.89092008]
[1763577391451,0.2,131.47,131.43,2.54]
[1763577392044,0.2,131.47,131.43,13.89092008]
[1763577392960,0.2,131.47,131.44,0.7]
[1763577393834,0.2,131.47,131.43,13.19092008]